[Event "*** Titled Tuesday Blitz"]
[Site "Chess.com"]
[Date "2020.04.21"]
[Round "5"]
[White "Natalya_Buksa"]
[Black "1f3_2g41-0"]
[Result "1-0"]
[WhiteElo "2476"]
[BlackElo "2179"]
[TimeControl "180+1"]
[EndTime "10:56:26 PDT"]
[Termination "Natalya_Buksa won on time"]

1. e4 {[%clk 0:03:00.9]} 1... c5 {[%clk 0:02:59.2]} 2. Nf3 {[%clk 0:02:59.1]}
2... d6 {[%clk 0:02:59.4]} 3. d4 {[%clk 0:02:58.8]} 3... cxd4 {[%clk 0:03:00.3]}
4. Nxd4 {[%clk 0:02:59.6]} 4... Nf6 {[%clk 0:02:59.8]} 5. Nc3 {[%clk 0:03:00.5]}
5... a6 {[%clk 0:03:00.2]} 6. Bd3 {[%clk 0:03:01]} 6... e5 {[%clk 0:03:00.1]} 7.
Nde2 {[%clk 0:03:01.5]} 7... Be7 {[%clk 0:03:00.7]} 8. O-O {[%clk 0:03:01.7]}
8... O-O {[%clk 0:03:01.3]} 9. Ng3 {[%clk 0:02:55.1]} 9... Be6 {[%clk
0:02:58.8]} 10. Nd5 {[%clk 0:02:52.6]} 10... Nxd5 {[%clk 0:02:45.8]} 11. exd5
{[%clk 0:02:51.6]} 11... Bxd5 {[%clk 0:02:46.4]} 12. Bxh7+ {[%clk 0:02:51.9]}
12... Kxh7 {[%clk 0:02:46.8]} 13. Qxd5 {[%clk 0:02:52.5]} 13... Qd7 {[%clk
0:02:41.3]} 14. c4 {[%clk 0:02:52.4]} 14... Nc6 {[%clk 0:02:38.7]} 15. Be3
{[%clk 0:02:51.1]} 15... f5 {[%clk 0:02:36.8]} 16. f4 {[%clk 0:02:48.6]} 16...
e4 {[%clk 0:02:26]} 17. Rad1 {[%clk 0:02:47.4]} 17... Nb4 {[%clk 0:02:22.8]} 18.
Qd2 {[%clk 0:02:42.9]} 18... Nd3 {[%clk 0:02:22.5]} 19. Qe2 {[%clk 0:02:38.3]}
19... g6 {[%clk 0:02:20.7]} 20. Rxd3 {[%clk 0:02:23.6]} 20... exd3 {[%clk
0:02:19.3]} 21. Qxd3 {[%clk 0:02:24.5]} 21... Bf6 {[%clk 0:02:08.1]} 22. b3
{[%clk 0:02:22.3]} 22... Rae8 {[%clk 0:02:03.9]} 23. Bf2 {[%clk 0:02:21.4]}
23... Re7 {[%clk 0:01:57.2]} 24. Rd1 {[%clk 0:02:21.5]} 24... Qc7 {[%clk
0:01:41.1]} 25. Ne2 {[%clk 0:02:04.1]} 25... Rfe8 {[%clk 0:01:30.9]} 26. Nc3
{[%clk 0:02:03.1]} 26... Bxc3 {[%clk 0:01:30.3]} 27. Qxc3 {[%clk 0:02:00.4]}
27... d5 {[%clk 0:01:28.3]} 28. Qh3+ {[%clk 0:01:52.5]} 28... Kg8 {[%clk
0:01:22.9]} 29. Qh6 {[%clk 0:01:52]} 29... Qc6 {[%clk 0:01:02.4]} 30. Rxd5
{[%clk 0:01:48.3]} 30... Qf6 {[%clk 0:00:44.4]} 31. h3 {[%clk 0:01:43.3]} 31...
Rh7 {[%clk 0:00:29.9]} 32. Qg5 {[%clk 0:01:43.5]} 32... Qxg5 {[%clk 0:00:30]}
33. fxg5 {[%clk 0:01:44.4]} 33... Re2 {[%clk 0:00:29.5]} 34. Rd6 {[%clk
0:01:42.3]} 34... Rxa2 {[%clk 0:00:23.4]} 35. Rxg6+ {[%clk 0:01:41.8]} 35... Rg7
{[%clk 0:00:23.8]} 36. Rb6 {[%clk 0:01:37.8]} 36... a5 {[%clk 0:00:19.5]} 37. h4
{[%clk 0:01:35.6]} 37... Rd7 {[%clk 0:00:19.4]} 38. Be3 {[%clk 0:01:17]} 38...
Rd3 {[%clk 0:00:19]} 39. Bf4 {[%clk 0:01:14.7]} 39... Rd4 {[%clk 0:00:19.3]} 40.
Rg6+ {[%clk 0:01:08.9]} 40... Kf7 {[%clk 0:00:16.5]} 41. Rf6+ {[%clk 0:01:08.7]}
41... Ke7 {[%clk 0:00:16.5]} 42. Rxf5 {[%clk 0:01:09]} 42... a4 {[%clk
0:00:12.8]} 43. bxa4 {[%clk 0:01:06.7]} 43... Rxa4 {[%clk 0:00:12.9]} 44. g6
{[%clk 0:01:06]} 44... Raxc4 {[%clk 0:00:06.9]} 45. Bg5+ {[%clk 0:01:06.4]}
45... Ke6 {[%clk 0:00:05.9]} 46. g7 {[%clk 0:01:06.8]} 1-0

[Event "*** Titled Tuesday Blitz"]
[Site "Chess.com"]
[Date "2020.04.21"]
[Round "5"]
[White "Sunnika"]
[Black "PauloCesarCosta_sad"]
[Result "0-1"]
[WhiteElo "2351"]
[BlackElo "2088"]
[TimeControl "180+1"]
[EndTime "10:56:26 PDT"]
[Termination "PauloCesarCosta_sad won by resignation"]

1. d4 {[%clk 0:03:00.9]} 1... d5 {[%clk 0:02:59.2]} 2. Nf3 {[%clk 0:03:01.8]}
2... c6 {[%clk 0:02:58.1]} 3. c4 {[%clk 0:03:01.9]} 3... e6 {[%clk 0:02:57.1]}
4. e3 {[%clk 0:03:02.5]} 4... Nf6 {[%clk 0:02:54.2]} 5. Nbd2 {[%clk 0:03:03]}
5... Nbd7 {[%clk 0:02:54.1]} 6. Bd3 {[%clk 0:03:03.5]} 6... Bd6 {[%clk 0:02:54]}
7. O-O {[%clk 0:03:04]} 7... O-O {[%clk 0:02:53.9]} 8. e4 {[%clk 0:03:04.6]}
8... dxe4 {[%clk 0:02:53.8]} 9. Nxe4 {[%clk 0:03:05.5]} 9... Nxe4 {[%clk
0:02:50.5]} 10. Bxe4 {[%clk 0:03:06.4]} 10... Nf6 {[%clk 0:02:48.8]} 11. Bc2
{[%clk 0:03:05.8]} 11... h6 {[%clk 0:02:40.6]} 12. b3 {[%clk 0:03:03.6]} 12...
b6 {[%clk 0:02:12.4]} 13. Bb2 {[%clk 0:03:03.5]} 13... Bb7 {[%clk 0:02:12.7]}
14. Qd3 {[%clk 0:03:03.8]} 14... Re8 {[%clk 0:02:01.6]} 15. Rad1 {[%clk
0:02:57.6]} 15... Qc7 {[%clk 0:01:45.6]} 16. Rfe1 {[%clk 0:02:56.5]} 16... Rad8
{[%clk 0:01:23.4]} 17. d5 {[%clk 0:02:53.6]} 17... e5 {[%clk 0:01:17.5]} 18.
dxc6 {[%clk 0:02:28.7]} 18... e4 {[%clk 0:01:12.9]} 19. Qc3 {[%clk 0:01:52.4]}
19... Bxc6 {[%clk 0:01:07.8]} 20. Nd4 {[%clk 0:01:46.9]} 20... Bxh2+ {[%clk
0:00:55.9]} 21. Kh1 {[%clk 0:01:47.3]} 21... Bd7 {[%clk 0:00:56.3]} 22. g3
{[%clk 0:01:39.9]} 22... Qc5 {[%clk 0:00:37.1]} 23. Kxh2 {[%clk 0:00:39.1]}
23... Qh5+ {[%clk 0:00:36.9]} 24. Kg1 {[%clk 0:00:38]} 24... Bg4 {[%clk
0:00:37.2]} 25. Rd2 {[%clk 0:00:20.6]} 25... Rxd4 {[%clk 0:00:31.3]} 26. Qxd4
{[%clk 0:00:20.2]} 26... Bf3 {[%clk 0:00:23.9]} 0-1

[Event "*** Titled Tuesday Blitz"]
[Site "Chess.com"]
[Date "2020.04.21"]
[Round "5"]
[White "Donseng"]
[Black "crazy_but_lazy"]
[Result "1-0"]
[WhiteElo "2529"]
[BlackElo "2372"]
[TimeControl "180+1"]
[EndTime "10:56:27 PDT"]
[Termination "Donseng won by checkmate"]

1. e4 {[%clk 0:03:00.9]} 1... c5 {[%clk 0:02:55]} 2. Nf3 {[%clk 0:03:00.6]} 2...
d6 {[%clk 0:02:54.8]} 3. d4 {[%clk 0:02:58.1]} 3... cxd4 {[%clk 0:02:54.7]} 4.
Nxd4 {[%clk 0:02:59]} 4... Nf6 {[%clk 0:02:54.5]} 5. Nc3 {[%clk 0:02:59.4]} 5...
a6 {[%clk 0:02:53.9]} 6. Be3 {[%clk 0:02:59.7]} 6... e5 {[%clk 0:02:53.6]} 7.
Nb3 {[%clk 0:02:59.2]} 7... Be6 {[%clk 0:02:53.5]} 8. h3 {[%clk 0:02:59.4]} 8...
h5 {[%clk 0:02:52.5]} 9. Qf3 {[%clk 0:02:59.1]} 9... Nbd7 {[%clk 0:02:49.1]} 10.
O-O-O {[%clk 0:02:58.9]} 10... Rc8 {[%clk 0:02:29.7]} 11. Nd5 {[%clk 0:02:58.4]}
11... Bxd5 {[%clk 0:02:27]} 12. exd5 {[%clk 0:02:59.3]} 12... g6 {[%clk
0:02:23.4]} 13. Kb1 {[%clk 0:02:58.6]} 13... Bh6 {[%clk 0:02:04.3]} 14. g4
{[%clk 0:02:41]} 14... Bxe3 {[%clk 0:01:38]} 15. fxe3 {[%clk 0:02:40.5]} 15...
e4 {[%clk 0:01:19.2]} 16. Qg2 {[%clk 0:02:32.6]} 16... Qe7 {[%clk 0:01:15.8]}
17. g5 {[%clk 0:02:31.4]} 17... Nh7 {[%clk 0:01:12]} 18. h4 {[%clk 0:02:31.2]}
18... O-O {[%clk 0:01:10.1]} 19. Be2 {[%clk 0:02:19]} 19... Rfe8 {[%clk
0:00:57.3]} 20. Rhf1 {[%clk 0:02:14.4]} 20... Nhf8 {[%clk 0:00:52.5]} 21. Nd4
{[%clk 0:02:11.9]} 21... Qe5 {[%clk 0:00:42.1]} 22. Rf4 {[%clk 0:02:10.9]} 22...
Nc5 {[%clk 0:00:35.5]} 23. Rdf1 {[%clk 0:02:08]} 23... Rc7 {[%clk 0:00:35.6]}
24. Rf6 {[%clk 0:02:03.7]} 24... Qxd5 {[%clk 0:00:19.1]} 25. Bxh5 {[%clk
0:02:03.3]} 25... gxh5 {[%clk 0:00:19.3]} 26. Nf5 {[%clk 0:02:03.7]} 26... Ng6
{[%clk 0:00:09.9]} 27. Nh6+ {[%clk 0:02:03]} 27... Kg7 {[%clk 0:00:10.2]} 28.
Nf5+ {[%clk 0:01:55.8]} 28... Kg8 {[%clk 0:00:09.9]} 29. Qe2 {[%clk 0:01:31.4]}
29... Na4 {[%clk 0:00:08.4]} 30. Rxd6 {[%clk 0:01:20.2]} 30... Qb5 {[%clk
0:00:07.1]} 31. Nh6+ {[%clk 0:01:18.4]} 31... Kh8 {[%clk 0:00:04.8]} 32. Qxb5
{[%clk 0:01:15.3]} 32... axb5 {[%clk 0:00:04.7]} 33. Nxf7+ {[%clk 0:01:15.7]}
33... Kg7 {[%clk 0:00:05.4]} 34. Nh6 {[%clk 0:01:12.2]} 34... Ne5 {[%clk
0:00:05.8]} 35. Rff6 {[%clk 0:01:09]} 35... Rf8 {[%clk 0:00:03.7]} 36. Nf5+
{[%clk 0:01:09.9]} 36... Kg8 {[%clk 0:00:03.4]} 37. Nh6+ {[%clk 0:01:08.2]}
37... Kg7 {[%clk 0:00:03.7]} 38. Nf5+ {[%clk 0:01:06.4]} 38... Kg8 {[%clk
0:00:04.1]} 39. Rxf8+ {[%clk 0:01:02.4]} 39... Kxf8 {[%clk 0:00:05]} 40. g6
{[%clk 0:01:03.3]} 40... Nc5 {[%clk 0:00:03.8]} 41. Rd8# {[%clk 0:01:02.3]} 1-0

[Event "*** Titled Tuesday Blitz"]
[Site "Chess.com"]
[Date "2020.04.21"]
[Round "5"]
[White "djano"]
[Black "zurzan"]
[Result "1-0"]
[WhiteElo "2467"]
[BlackElo "2005"]
[TimeControl "180+1"]
[EndTime "10:56:27 PDT"]
[Termination "djano won on time"]

1. Nf3 {[%clk 0:03:00.9]} 1... d6 {[%clk 0:02:59.2]} 2. d4 {[%clk 0:02:59.7]}
2... g6 {[%clk 0:02:57.1]} 3. c4 {[%clk 0:02:59.8]} 3... Bg7 {[%clk 0:02:56.5]}
4. g3 {[%clk 0:03:00.2]} 4... f5 {[%clk 0:02:55.9]} 5. Bg2 {[%clk 0:03:00.4]}
5... Nf6 {[%clk 0:02:56]} 6. O-O {[%clk 0:03:00.9]} 6... O-O {[%clk 0:02:56.3]}
7. b3 {[%clk 0:03:01.2]} 7... c6 {[%clk 0:02:57.2]} 8. Bb2 {[%clk 0:03:00.9]}
8... Na6 {[%clk 0:02:56.9]} 9. Nc3 {[%clk 0:02:56.7]} 9... Qc7 {[%clk
0:02:56.3]} 10. Rc1 {[%clk 0:02:55.1]} 10... e5 {[%clk 0:02:55]} 11. e3 {[%clk
0:02:55.4]} 11... e4 {[%clk 0:02:54.5]} 12. Ng5 {[%clk 0:02:49.2]} 12... h6
{[%clk 0:02:51.3]} 13. Nh3 {[%clk 0:02:48.8]} 13... g5 {[%clk 0:02:42.7]} 14. a3
{[%clk 0:02:44.8]} 14... Be6 {[%clk 0:02:16.8]} 15. d5 {[%clk 0:02:40.3]} 15...
Bf7 {[%clk 0:02:10.6]} 16. b4 {[%clk 0:02:34.2]} 16... Bh5 {[%clk 0:01:57.9]}
17. Qb3 {[%clk 0:02:30.8]} 17... Qf7 {[%clk 0:01:54.9]} 18. Kh1 {[%clk 0:02:26]}
18... Qg6 {[%clk 0:01:41.3]} 19. f3 {[%clk 0:02:15.7]} 19... exf3 {[%clk
0:01:32.2]} 20. Bxf3 {[%clk 0:02:16]} 20... Bxf3+ {[%clk 0:01:31.8]} 21. Rxf3
{[%clk 0:02:16.9]} 21... g4 {[%clk 0:01:31.9]} 22. Nf4 {[%clk 0:02:16.9]} 22...
Qe8 {[%clk 0:01:20.1]} 23. Rff1 {[%clk 0:02:13.5]} 23... Qxe3 {[%clk 0:01:18.1]}
24. Rce1 {[%clk 0:02:13.6]} 24... Qb6 {[%clk 0:01:10.7]} 25. c5 {[%clk
0:02:11.5]} 25... dxc5 {[%clk 0:01:08.8]} 26. dxc6+ {[%clk 0:02:09.9]} 26... Kh7
{[%clk 0:01:03.2]} 27. b5 {[%clk 0:01:36.6]} 27... Nc7 {[%clk 0:00:54.3]} 28.
Qc2 {[%clk 0:01:24.2]} 28... Ng8 {[%clk 0:00:32.3]} 29. Nfd5 {[%clk 0:01:03.2]}
29... Nxd5 {[%clk 0:00:31.2]} 30. Rxf5 {[%clk 0:00:58.1]} 30... Rxf5 {[%clk
0:00:17.2]} 31. Nxd5 {[%clk 0:00:57.7]} 31... Kh8 {[%clk 0:00:18.1]} 32. Nxb6
{[%clk 0:00:56.8]} 32... Raf8 {[%clk 0:00:02.8]} 33. Nd7 {[%clk 0:00:51.7]}
33... Rf1+ {[%clk 0:00:01.3]} 34. Rxf1 {[%clk 0:00:51.8]} 34... Rxf1+ {[%clk
0:00:02.2]} 35. Kg2 {[%clk 0:00:52.1]} 35... Rf3 {[%clk 0:00:02.3]} 36. Bxg7+
{[%clk 0:00:50.5]} 36... Kxg7 {[%clk 0:00:03.2]} 37. cxb7 {[%clk 0:00:49.9]} 1-0

[Event "*** Titled Tuesday Blitz"]
[Site "Chess.com"]
[Date "2020.04.21"]
[Round "5"]
[White "PowerThinking2650"]
[Black "Olga_Girya"]
[Result "0-1"]
[WhiteElo "2275"]
[BlackElo "2468"]
[TimeControl "180+1"]
[EndTime "10:56:27 PDT"]
[Termination "Olga_Girya won on time"]

1. e4 {[%clk 0:03:00.9]} 1... c6 {[%clk 0:02:59.7]} 2. d4 {[%clk 0:03:00.3]}
2... d5 {[%clk 0:03:00.1]} 3. Nc3 {[%clk 0:03:01]} 3... dxe4 {[%clk 0:02:59.9]}
4. Nxe4 {[%clk 0:03:01.9]} 4... Bf5 {[%clk 0:02:59.8]} 5. Ng3 {[%clk 0:03:01.6]}
5... Bg6 {[%clk 0:03:00.3]} 6. h4 {[%clk 0:03:01.5]} 6... h6 {[%clk 0:03:00]} 7.
Nf3 {[%clk 0:03:00.8]} 7... Nd7 {[%clk 0:02:59]} 8. h5 {[%clk 0:03:01]} 8... Bh7
{[%clk 0:02:59.3]} 9. Bd3 {[%clk 0:03:01.2]} 9... Bxd3 {[%clk 0:02:59.8]} 10.
Qxd3 {[%clk 0:03:01.8]} 10... e6 {[%clk 0:03:00.4]} 11. Bf4 {[%clk 0:03:00.8]}
11... Qa5+ {[%clk 0:02:59.2]} 12. Kf1 {[%clk 0:03:00.4]} 12... Ngf6 {[%clk
0:02:53.6]} 13. c4 {[%clk 0:03:00.2]} 13... Be7 {[%clk 0:02:49]} 14. Rh3 {[%clk
0:02:59.4]} 14... b5 {[%clk 0:02:39]} 15. c5 {[%clk 0:02:56.1]} 15... Rd8 {[%clk
0:02:33]} 16. Qc2 {[%clk 0:02:51.1]} 16... O-O {[%clk 0:02:22.9]} 17. a3 {[%clk
0:02:10.8]} 17... b4 {[%clk 0:02:18.5]} 18. a4 {[%clk 0:01:58]} 18... b3 {[%clk
0:02:14.5]} 19. Qxb3 {[%clk 0:01:38.1]} 19... Nd5 {[%clk 0:02:14.3]} 20. Bd2
{[%clk 0:01:34.9]} 20... Qa6+ {[%clk 0:02:13.6]} 21. Kg1 {[%clk 0:01:30.9]}
21... Rb8 {[%clk 0:02:13.3]} 22. Qc2 {[%clk 0:01:25.9]} 22... Nb4 {[%clk
0:02:05.1]} 23. Bxb4 {[%clk 0:00:59.1]} 23... Rxb4 {[%clk 0:02:06]} 24. Ne4
{[%clk 0:00:59]} 24... Rfb8 {[%clk 0:01:52.1]} 25. Ra2 {[%clk 0:00:42.3]} 25...
Qc4 {[%clk 0:01:37.7]} 26. Qxc4 {[%clk 0:00:36]} 26... Rxc4 {[%clk 0:01:38.6]}
27. Nc3 {[%clk 0:00:34.5]} 27... Rcb4 {[%clk 0:01:31.2]} 28. Nd1 {[%clk
0:00:17.2]} 28... Bf6 {[%clk 0:01:31.3]} 29. Rg3 {[%clk 0:00:11.4]} 29... Bxd4
{[%clk 0:01:28.6]} 30. Nxd4 {[%clk 0:00:08.6]} 30... Rxd4 {[%clk 0:01:28.7]} 31.
Nc3 {[%clk 0:00:08.1]} 31... Nxc5 {[%clk 0:01:28.6]} 32. Re3 {[%clk 0:00:07.8]}
32... Rdb4 {[%clk 0:01:23.2]} 33. Re5 {[%clk 0:00:07.5]} 33... Nd3 {[%clk
0:01:22]} 34. Ra5 {[%clk 0:00:07.2]} 34... R8b7 {[%clk 0:01:19.3]} 35. Ne4
{[%clk 0:00:04.8]} 35... Rxb2 {[%clk 0:00:58.4]} 36. Rxb2 {[%clk 0:00:04]} 36...
Nxb2 {[%clk 0:00:58.3]} 37. Nc5 {[%clk 0:00:01.9]} 37... Re7 {[%clk 0:00:58.1]}
38. Ra6 {[%clk 0:00:01.6]} 38... Rc7 {[%clk 0:00:52.4]} 0-1

[Event "*** Titled Tuesday Blitz"]
[Site "Chess.com"]
[Date "2020.04.21"]
[Round "5"]
[White "SARGISMV"]
[Black "alex_zapata"]
[Result "1-0"]
[WhiteElo "2429"]
[BlackElo "2241"]
[TimeControl "180+1"]
[EndTime "10:56:31 PDT"]
[Termination "SARGISMV won by checkmate"]

1. Nf3 {[%clk 0:01:31.1]} 1... d5 {[%clk 0:02:58.2]} 2. c4 {[%clk 0:01:27.8]}
2... c6 {[%clk 0:02:58]} 3. e3 {[%clk 0:01:27.3]} 3... Nf6 {[%clk 0:02:57.8]} 4.
Nc3 {[%clk 0:01:28.2]} 4... e6 {[%clk 0:02:56.3]} 5. b3 {[%clk 0:01:28.4]} 5...
Nbd7 {[%clk 0:02:56.3]} 6. Bb2 {[%clk 0:01:29]} 6... Bd6 {[%clk 0:02:55.5]} 7.
Qc2 {[%clk 0:01:29.6]} 7... O-O {[%clk 0:02:55.5]} 8. Be2 {[%clk 0:01:30.3]}
8... Re8 {[%clk 0:02:54]} 9. g4 {[%clk 0:01:29.2]} 9... Nc5 {[%clk 0:02:32]} 10.
g5 {[%clk 0:01:27.1]} 10... Nfe4 {[%clk 0:02:31.8]} 11. h4 {[%clk 0:01:13.7]}
11... Nxc3 {[%clk 0:02:27.5]} 12. Qxc3 {[%clk 0:01:13.3]} 12... Bf8 {[%clk
0:02:27.6]} 13. d3 {[%clk 0:01:08.5]} 13... b5 {[%clk 0:02:09.2]} 14. h5 {[%clk
0:01:03.7]} 14... dxc4 {[%clk 0:02:06]} 15. bxc4 {[%clk 0:00:58.6]} 15... Na4
{[%clk 0:02:05.6]} 16. Qc2 {[%clk 0:00:49.9]} 16... Nxb2 {[%clk 0:01:57.1]} 17.
Qxb2 {[%clk 0:00:50.8]} 17... bxc4 {[%clk 0:01:51.3]} 18. dxc4 {[%clk
0:00:46.5]} 18... Qa5+ {[%clk 0:01:51.3]} 19. Kf1 {[%clk 0:00:46.3]} 19... Ba6
{[%clk 0:01:40]} 20. h6 {[%clk 0:00:44.9]} 20... Rab8 {[%clk 0:01:39.3]} 21. Qe5
{[%clk 0:00:36.6]} 21... Qa4 {[%clk 0:01:23.7]} 22. Qe4 {[%clk 0:00:21.1]} 22...
g6 {[%clk 0:01:12.6]} 23. Ne5 {[%clk 0:00:21.2]} 23... Rb2 {[%clk 0:01:01.6]}
24. Qf4 {[%clk 0:00:19.8]} 24... Re7 {[%clk 0:00:56]} 25. Rd1 {[%clk 0:00:19.7]}
25... Rb8 {[%clk 0:00:39]} 26. Nd7 {[%clk 0:00:17.8]} 26... Rc8 {[%clk
0:00:25.3]} 27. Nf6+ {[%clk 0:00:17.6]} 27... Kh8 {[%clk 0:00:25.9]} 28. Qe5
{[%clk 0:00:16.5]} 28... Bxc4 {[%clk 0:00:13.6]} 29. Nd5+ {[%clk 0:00:13.4]}
29... Kg8 {[%clk 0:00:13.8]} 30. Nxe7+ {[%clk 0:00:13.1]} 30... Bxe7 {[%clk
0:00:12]} 31. Qg7# {[%clk 0:00:13.2]} 1-0

[Event "*** Titled Tuesday Blitz"]
[Site "Chess.com"]
[Date "2020.04.21"]
[Round "5"]
[White "woodhy"]
[Black "velemajstor767276"]
[Result "1-0"]
[WhiteElo "2286"]
[BlackElo "2501"]
[TimeControl "180+1"]
[EndTime "10:56:32 PDT"]
[Termination "woodhy won on time"]

1. e4 {[%clk 0:03:00.9]} 1... c5 {[%clk 0:02:58.9]} 2. Nf3 {[%clk 0:03:00.8]}
2... e6 {[%clk 0:02:55.5]} 3. d4 {[%clk 0:03:01.2]} 3... cxd4 {[%clk 0:02:56.4]}
4. Nxd4 {[%clk 0:03:01.9]} 4... a6 {[%clk 0:02:56.9]} 5. c4 {[%clk 0:03:02.1]}
5... Nf6 {[%clk 0:02:56.4]} 6. Nc3 {[%clk 0:03:02.4]} 6... Bb4 {[%clk
0:02:56.9]} 7. Bd3 {[%clk 0:03:00.5]} 7... Qc7 {[%clk 0:02:55.9]} 8. Ne2 {[%clk
0:02:59.1]} 8... Nc6 {[%clk 0:02:55.4]} 9. a3 {[%clk 0:02:58.2]} 9... Be7 {[%clk
0:02:52.2]} 10. b4 {[%clk 0:02:52.6]} 10... Ne5 {[%clk 0:02:49.4]} 11. Bf4
{[%clk 0:02:47.7]} 11... Nh5 {[%clk 0:02:37.8]} 12. O-O {[%clk 0:02:23.6]} 12...
Nxf4 {[%clk 0:02:11.7]} 13. Nxf4 {[%clk 0:02:24.5]} 13... Nxd3 {[%clk
0:02:04.4]} 14. Nxd3 {[%clk 0:02:14.2]} 14... Qxc4 {[%clk 0:02:04.3]} 15. Rc1
{[%clk 0:02:13.3]} 15... Qd4 {[%clk 0:02:00.8]} 16. Qf3 {[%clk 0:02:02.4]} 16...
d6 {[%clk 0:01:51.9]} 17. Rfd1 {[%clk 0:01:59.9]} 17... O-O {[%clk 0:01:46.2]}
18. Ne2 {[%clk 0:01:31.9]} 18... Qb6 {[%clk 0:01:34.1]} 19. e5 {[%clk
0:01:23.4]} 19... d5 {[%clk 0:01:03.5]} 20. Nef4 {[%clk 0:01:15.1]} 20... Bd7
{[%clk 0:00:58.9]} 21. Nc5 {[%clk 0:01:11.3]} 21... Bc6 {[%clk 0:00:56.3]} 22.
Nh5 {[%clk 0:01:06.5]} 22... Kh8 {[%clk 0:00:49.7]} 23. Rd4 {[%clk 0:01:01.3]}
23... Qd8 {[%clk 0:00:46.5]} 24. Rg4 {[%clk 0:00:59.2]} 24... g6 {[%clk
0:00:44.7]} 25. Nf6 {[%clk 0:00:58.7]} 25... Bxf6 {[%clk 0:00:44.2]} 26. exf6
{[%clk 0:00:59.6]} 26... d4 {[%clk 0:00:37.6]} 27. Qf4 {[%clk 0:00:58.6]} 27...
d3 {[%clk 0:00:32.8]} 28. Rh4 {[%clk 0:00:55.9]} 28... Qd5 {[%clk 0:00:25.5]}
29. f3 {[%clk 0:00:54.4]} 29... g5 {[%clk 0:00:24.3]} 30. Qg4 {[%clk 0:00:52.6]}
30... d2 {[%clk 0:00:13.7]} 31. Rd1 {[%clk 0:00:51.4]} 31... Rad8 {[%clk
0:00:12.9]} 32. Rxh7+ {[%clk 0:00:50.1]} 32... Kxh7 {[%clk 0:00:12]} 33. Qh5+
{[%clk 0:00:50.5]} 33... Kg8 {[%clk 0:00:12.4]} 34. Qh6 {[%clk 0:00:51]} 34...
Qd4+ {[%clk 0:00:10.4]} 35. Kh1 {[%clk 0:00:50.5]} 35... Qxf6 {[%clk 0:00:06.5]}
36. Qxf6 {[%clk 0:00:51.4]} 36... Rd5 {[%clk 0:00:07.1]} 37. Rxd2 {[%clk
0:00:50.6]} 37... Rfd8 {[%clk 0:00:03.6]} 38. Qxd8+ {[%clk 0:00:49.8]} 38...
Rxd8 {[%clk 0:00:03]} 39. Rxd8+ {[%clk 0:00:50.7]} 39... Kg7 {[%clk 0:00:03.2]}
40. Rd6 {[%clk 0:00:51.6]} 1-0

[Event "*** Titled Tuesday Blitz"]
[Site "Chess.com"]
[Date "2020.04.21"]
[Round "5"]
[White "ChessQueen"]
[Black "fancyknightmaneuvers"]
[Result "1-0"]
[WhiteElo "2761"]
[BlackElo "2604"]
[TimeControl "180+1"]
[EndTime "10:56:33 PDT"]
[Termination "ChessQueen won on time"]

1. Nf3 {[%clk 0:03:00.9]} 1... d5 {[%clk 0:02:57.9]} 2. g3 {[%clk 0:03:00.7]}
2... g6 {[%clk 0:02:57.9]} 3. Bg2 {[%clk 0:03:00.2]} 3... Bg7 {[%clk 0:02:58.4]}
4. d4 {[%clk 0:02:59.7]} 4... Nf6 {[%clk 0:02:57.8]} 5. O-O {[%clk 0:02:59.9]}
5... O-O {[%clk 0:02:56.8]} 6. c4 {[%clk 0:02:59.7]} 6... c6 {[%clk 0:02:54.5]}
7. Qb3 {[%clk 0:02:59.2]} 7... dxc4 {[%clk 0:02:36.2]} 8. Qxc4 {[%clk
0:02:57.8]} 8... Nbd7 {[%clk 0:02:33.3]} 9. Nc3 {[%clk 0:02:53.5]} 9... Nb6
{[%clk 0:02:18.9]} 10. Qd3 {[%clk 0:02:53]} 10... Nfd5 {[%clk 0:02:08.9]} 11. e4
{[%clk 0:02:48.5]} 11... Nxc3 {[%clk 0:02:08.4]} 12. bxc3 {[%clk 0:02:48.5]}
12... Be6 {[%clk 0:02:07.1]} 13. Rd1 {[%clk 0:02:44.9]} 13... Qd7 {[%clk
0:02:02.7]} 14. h4 {[%clk 0:02:40.9]} 14... Rfd8 {[%clk 0:01:57.2]} 15. Bg5
{[%clk 0:02:35.4]} 15... h6 {[%clk 0:01:56.6]} 16. Bf4 {[%clk 0:02:34.4]} 16...
Nc4 {[%clk 0:01:49.9]} 17. Rab1 {[%clk 0:02:28.4]} 17... b5 {[%clk 0:01:15.7]}
18. Nd2 {[%clk 0:02:02.2]} 18... Na3 {[%clk 0:00:57.7]} 19. Rb2 {[%clk
0:02:00.6]} 19... Rac8 {[%clk 0:00:51.5]} 20. Nb3 {[%clk 0:01:59.1]} 20... Nc4
{[%clk 0:00:35.1]} 21. Re2 {[%clk 0:01:56.7]} 21... Qe8 {[%clk 0:00:24.7]} 22.
Nc5 {[%clk 0:01:54.6]} 22... Bd7 {[%clk 0:00:25.2]} 23. e5 {[%clk 0:01:52.1]}
23... Bf5 {[%clk 0:00:24.7]} 24. Be4 {[%clk 0:01:40.2]} 24... Bxe4 {[%clk
0:00:25.1]} 25. Qxe4 {[%clk 0:01:36.5]} 25... Rd5 {[%clk 0:00:25.3]} 26. Kg2
{[%clk 0:01:26.8]} 26... Rcd8 {[%clk 0:00:25.6]} 27. Rh1 {[%clk 0:01:26.3]}
27... e6 {[%clk 0:00:19.3]} 28. h5 {[%clk 0:01:19]} 28... g5 {[%clk 0:00:15.3]}
29. Bxg5 {[%clk 0:01:07.4]} 29... hxg5 {[%clk 0:00:16.2]} 30. h6 {[%clk
0:01:08.1]} 30... Bh8 {[%clk 0:00:16.7]} 31. h7+ {[%clk 0:01:04.2]} 31... Kf8
{[%clk 0:00:17]} 32. Rh5 {[%clk 0:01:02.5]} 32... Nxe5 {[%clk 0:00:16.5]} 33.
dxe5 {[%clk 0:00:59.9]} 33... Rxc5 {[%clk 0:00:14.9]} 34. Rxg5 {[%clk 0:01:00]}
34... Ke7 {[%clk 0:00:08.3]} 35. Rg8 {[%clk 0:00:59.6]} 35... Qd7 {[%clk
0:00:02.9]} 36. Qh4+ {[%clk 0:00:58.3]} 36... f6 {[%clk 0:00:03.4]} 37. Rxh8
{[%clk 0:00:58.5]} 37... Rxh8 {[%clk 0:00:02.5]} 38. Qxf6+ {[%clk 0:00:58.3]}
38... Ke8 {[%clk 0:00:03.4]} 39. Qxh8+ {[%clk 0:00:58.4]} 1-0